fUSD/lending_fUSD_20250115
["ID","MTS","AMOUNT","RATE_DAILY","PERIOD"]
[348966764,1736902238020,-281.44,0.00010367,2]
[348966766,1736902238029,-250.0,0.0001048,2]
[348966768,1736902238038,-23900.0,0.00010498,2]
[348966770,1736902238047,-324.77,0.00010521,2]
[348966772,1736902238057,-500.0,0.00010547,2]
[348966774,1736902238066,-500.0,0.00010547,2]
[348966776,1736902238075,-500.0,0.00010547,2]
[348966778,1736902238084,-500.0,0.00010547,2]
[348966779,1736902238093,-273.43977331,0.00010547,2]
[348966781,1736902238102,-500.0,0.00010547,2]
[348966783,1736902238111,-500.0,0.00010547,2]
[348966784,1736902238121,-500.0,0.00010547,2]
[348966785,1736902238130,-500.0,0.00010547,2]
[348966786,1736902238139,-500.0,0.00010547,2]
[348966787,1736902238148,-500.0,0.00010547,2]
[348966788,1736902238158,-500.0,0.00010547,2]
[348966789,1736902238167,-500.0,0.00010547,2]
[348966790,1736902238178,-500.0,0.00010547,2]
[348966791,1736902238187,-500.0,0.00010547,2]
[348966792,1736902238196,-500.0,0.00010547,2]
[348966793,1736902238205,-500.0,0.00010547,2]
[348966794,1736902238214,-500.0,0.00010547,2]
[348966795,1736902238222,-500.0,0.00010547,2]
[348966796,1736902238232,-500.0,0.00010547,2]
[348966797,1736902238241,-500.0,0.00010547,2]
[348966798,1736902238250,-500.0,0.00010547,2]
[348966799,1736902238259,-500.0,0.00010547,2]
[348966800,1736902238267,-500.0,0.00010547,2]
[348966801,1736902238276,-500.0,0.00010547,2]
[348966802,1736902238285,-500.0,0.00010547,2]
[348966803,1736902238294,-500.0,0.00010547,2]
[348966804,1736902238302,-500.0,0.00010547,2]
[348966805,1736902238311,-500.0,0.00010547,2]
[348966806,1736902238321,-500.0,0.00010547,2]
[348966807,1736902238330,-500.0,0.00010547,2]
[348966808,1736902238339,-500.0,0.00010547,2]
[348966809,1736902238348,-500.0,0.00010547,2]
[348966810,1736902238357,-500.0,0.00010547,2]
[348966811,1736902238366,-500.0,0.00010547,2]
[348966812,1736902238375,-500.0,0.00010821,2]
[348966813,1736902238384,-500.0,0.00010821,2]
[348966814,1736902238393,-500.0,0.00010821,2]
[348966815,1736902238402,-500.0,0.00010821,2]
[348966816,1736902238411,-500.0,0.00010821,2]
[348966817,1736902238420,-500.0,0.00010821,2]
[348966818,1736902238429,-500.0,0.00010821,2]
[348966819,1736902238438,-500.0,0.00010821,2]
[348966820,1736902238447,-500.0,0.00010821,2]
[348966821,1736902238456,-500.0,0.00010821,2]
[348966822,1736902238465,-500.0,0.00010821,2]
[348966823,1736902238474,-500.0,0.00010821,2]
[348966824,1736902238483,-500.0,0.00010821,2]
[348966825,1736902238492,-500.0,0.00010821,2]
[348966826,1736902238501,-500.0,0.00010821,2]
[348966827,1736902238510,-500.0,0.00010821,2]
[348966828,1736902238519,-500.0,0.00010821,2]
[348966829,1736902238527,-500.0,0.00010821,2]
[348966830,1736902238536,-500.0,0.00010821,2]
[348966831,1736902238546,-500.0,0.00010821,2]
[348966832,1736902238556,-401.85510887,0.00010821,2]
[348966833,1736902238565,-500.0,0.00010821,2]
[348966834,1736902238574,-500.0,0.00010821,2]
[348966835,1736902238583,-500.0,0.00010821,2]
[348966836,1736902238593,-500.0,0.00010821,2]
[348966837,1736902238602,-500.0,0.00010821,2]
[348966838,1736902238611,-500.0,0.00010821,2]
[348966839,1736902238621,-500.0,0.00010821,2]
[348966840,1736902238631,-500.0,0.00010821,2]
[348966841,1736902238641,-500.0,0.00010821,2]
[348966842,1736902238650,-500.0,0.00010821,2]
[348966843,1736902238659,-1303.90513483,0.000109,2]
[348966844,1736902238667,-500.0,0.00010986,2]
[348966845,1736902238677,-791.95,0.00010999,2]
[348966846,1736902238686,-550.0,0.00011,2]
[348966847,1736902238695,-2685.0,0.0001109,2]
[348966848,1736902238704,-500.0,0.00011094,2]
[348966849,1736902238713,-500.0,0.00011094,2]
[348966850,1736902238722,-500.0,0.00011094,2]
[348966851,1736902238731,-426.65979373,0.00011094,2]
[348966852,1736902238740,-505.08,0.00011094,2]
[348966853,1736902238749,-511.77,0.00011094,2]
[348966854,1736902238758,-500.0,0.00011094,2]
[348966855,1736902238767,-331.51225342,0.00011094,2]
[348966856,1736902238775,-951.72,0.00011094,2]
[348966857,1736902238785,-2890.2,0.00011094,2]
[348966858,1736902238794,-500.0,0.00011094,2]
[348966859,1736902238802,-500.0,0.00011094,2]
[348966860,1736902238811,-500.0,0.00011094,2]
[348966861,1736902238820,-393.88628867,0.00011094,2]
[348966862,1736902238829,-500.0,0.00011094,2]
[348966863,1736902238839,-500.0,0.00011094,2]
[348966864,1736902238848,-500.0,0.00011094,2]
[348966865,1736902238857,-899.21,0.00011094,2]
[348966866,1736902238867,-500.0,0.00011094,2]
[348966867,1736902238876,-500.0,0.00011094,2]
[348966868,1736902238885,-2049.43,0.00011094,2]
[348966869,1736902238894,-570.3,0.00011094,2]
[348966870,1736902238903,-500.0,0.00011094,2]
[348966871,1736902238912,-500.0,0.00011094,2]
[348966872,1736902238920,-1049.34,0.00011094,2]
[348966873,1736902238929,-508.03,0.00011094,2]
[348966874,1736902238939,-500.0,0.00011094,2]
[348966875,1736902238948,-892.05,0.00011094,2]
[348966876,1736902238957,-931.61,0.00011094,2]
[348966877,1736902238967,-209.21,0.00011094,2]
[348966878,1736902238976,-500.0,0.00011094,2]
[348966879,1736902238984,-592.57,0.00011094,2]
[348966880,1736902238993,-1565.46,0.00011094,2]
[348966881,1736902239003,-689.17,0.00011094,2]
[348966882,1736902239012,-500.0,0.00011094,2]
[348966883,1736902239021,-500.0,0.00011094,2]
[348966884,1736902239030,-500.0,0.00011094,2]
[348966885,1736902239039,-500.0,0.00011094,2]
[348966886,1736902239048,-500.0,0.00011094,2]
[348966887,1736902239058,-605.03,0.00011094,2]
[348966888,1736902239067,-556.38,0.00011094,2]
[348966889,1736902239076,-726.61,0.00011094,2]
[348966890,1736902239086,-500.0,0.00011094,2]
[348966891,1736902239095,-500.0,0.00011094,2]
[348966892,1736902239104,-884.02,0.00011094,2]
[348966893,1736902239113,-500.0,0.00011094,2]
[348966894,1736902239122,-500.0,0.00011094,2]
[348966895,1736902239131,-500.0,0.00011094,2]
[348966896,1736902239141,-500.0,0.00011094,2]
[348966897,1736902239150,-500.0,0.00011094,2]
[348966898,1736902239159,-500.0,0.00011094,2]
[348966899,1736902239168,-500.0,0.00011095,2]
[348966900,1736902239177,-500.0,0.00011095,2]
[348966901,1736902239186,-500.0,0.00011095,2]
[348966902,1736902239195,-500.0,0.00011095,2]
[348966903,1736902239205,-500.0,0.00011095,2]
[348966904,1736902239214,-500.0,0.00011095,2]
[348966905,1736902239223,-500.0,0.00011095,2]
[348966906,1736902239232,-500.0,0.00011095,2]
[348966907,1736902239242,-500.0,0.00011095,2]
[348966908,1736902239251,-500.0,0.00011095,2]
[348966909,1736902239261,-500.0,0.00011095,2]
[348966910,1736902239270,-500.0,0.00011095,2]
[348966911,1736902239279,-500.0,0.00011095,2]
[348966912,1736902239288,-500.0,0.00011095,2]
[348966913,1736902239298,-500.0,0.00011095,2]
[348966914,1736902239308,-500.0,0.00011095,2]
[348966915,1736902239317,-500.0,0.00011095,2]
[348966916,1736902239327,-500.0,0.00011095,2]
[348966917,1736902239336,-500.0,0.00011095,2]
[348966918,1736902239347,-639.13647976,0.00011095,2]
[348966919,1736902239356,-500.0,0.00011095,2]
[348966920,1736902239365,-500.0,0.00011095,2]
[348966921,1736902239375,-500.0,0.00011095,2]
[348966922,1736902239385,-500.0,0.00011095,2]
[348966923,1736902239394,-500.0,0.00011095,2]
[348966924,1736902239403,-500.0,0.00011095,2]
[348966925,1736902239413,-500.0,0.00011095,2]
[348966926,1736902239422,-94907.14390191,0.00011095,2]
[348966927,1736902239432,-250.0,0.00011129,2]
[348966928,1736902239442,-500.0,0.00011149,2]
[348966929,1736902239451,-556.55,0.00011255,2]
[348966930,1736902239461,-500.0,0.00011255,2]
[348966931,1736902239470,-1182.14,0.00011255,2]
[348966932,1736902239479,-167.14802506,0.00011268,2]
[348966933,1736902239489,-791.95,0.00011273,2]
[348966934,1736902239497,-1303.90513457,0.00011279,2]
[348966935,1736902239506,-500.0,0.00011368,2]
[348966936,1736902239515,-951.72,0.00011368,2]
[348966937,1736902239524,-2890.2,0.00011368,2]
[348966938,1736902239533,-500.0,0.00011368,2]
[348966939,1736902239542,-500.0,0.00011368,2]
[348966940,1736902239555,-500.0,0.00011368,2]
[348966942,1736902239564,-899.21,0.00011368,2]
[348966944,1736902239573,-500.0,0.00011368,2]
[348966945,1736902239583,-2049.43,0.00011368,2]
[348966946,1736902239593,-570.3,0.00011368,2]
[348966947,1736902239602,-500.0,0.00011368,2]
[348966948,1736902239611,-500.0,0.00011368,2]
[348966949,1736902239621,-1049.34,0.00011368,2]
[348966950,1736902239630,-508.03,0.00011368,2]
[348966951,1736902239639,-500.0,0.00011368,2]
[348966952,1736902239648,-892.05,0.00011368,2]
[348966953,1736902239658,-931.61,0.00011368,2]
[348966954,1736902239667,-592.57,0.00011368,2]
[348966955,1736902239676,-500.0,0.00011368,2]
[348966956,1736902239685,-1565.46,0.00011368,2]
[348966957,1736902239695,-689.17,0.00011368,2]
[348966958,1736902239704,-500.0,0.00011368,2]
[348966959,1736902239714,-202.24468591,0.00011368,2]
[348966960,1736902239723,-500.0,0.00011368,2]
[348966961,1736902239732,-605.03,0.00011368,2]
[348966962,1736902239742,-556.38,0.00011368,2]
[348966963,1736902239750,-726.61,0.00011368,2]
[348966964,1736902239759,-500.0,0.00011368,2]
[348966965,1736902239769,-500.0,0.00011368,2]
[348966966,1736902239778,-884.02,0.00011368,2]
[348966967,1736902239787,-500.0,0.00011368,2]
[348966968,1736902239796,-500.0,0.00011368,2]
[348966969,1736902239807,-500.0,0.00011368,2]
[348966970,1736902239817,-500.0,0.00011368,2]
[348966971,1736902239826,-500.0,0.00011368,2]
[348966972,1736902239835,-500.0,0.00011369,2]
[348966973,1736902239845,-538.98525175,0.00011369,2]
[348966974,1736902239854,-500.0,0.00011369,2]
[348966975,1736902239864,-500.0,0.00011369,2]
[348966976,1736902239873,-500.0,0.00011369,2]
[348966977,1736902239883,-500.0,0.00011369,2]
[348966978,1736902239891,-500.0,0.00011369,2]
[348966979,1736902239900,-500.0,0.00011369,2]
[348966980,1736902239909,-500.0,0.00011369,2]
[348966981,1736902239918,-500.0,0.00011369,2]
[348966982,1736902239927,-500.0,0.00011369,2]
[348966983,1736902239936,-500.0,0.00011369,2]
[348966984,1736902239946,-500.0,0.00011369,2]
[348966985,1736902239954,-500.0,0.00011369,2]
[348966986,1736902239963,-500.0,0.00011369,2]
[348966987,1736902239972,-500.0,0.00011369,2]
[348966988,1736902239981,-500.0,0.00011369,2]
[348966989,1736902239990,-500.0,0.00011369,2]
[348966990,1736902239999,-500.0,0.00011369,2]
[348966991,1736902240009,-500.0,0.00011369,2]
[348966992,1736902240018,-500.0,0.00011369,2]
[348966993,1736902240027,-500.0,0.00011369,2]
[348966994,1736902240037,-500.0,0.00011369,2]
[348966995,1736902240046,-500.0,0.00011369,2]
[348966996,1736902240057,-500.0,0.00011369,2]
[348966997,1736902240066,-529.75580128,0.00011369,2]
[348966998,1736902240075,-500.0,0.00011369,2]
[348966999,1736902240085,-298.0,0.00011369,2]
[348967000,1736902240094,-3179.76,0.00011422,2]
[348967001,1736902240103,-956.73,0.00011422,2]
[348967002,1736902240112,-1495.0,0.00011422,2]
[348967003,1736902240121,-879.17,0.00011422,2]
[348967004,1736902240131,-500.0,0.00011422,2]
[348967005,1736902240141,-695.35,0.00011422,2]
[348967006,1736902240150,-500.0,0.00011423,2]
[348967007,1736902240159,-219.43,0.00011501,2]
[348967008,1736902240168,-2751.0,0.00011507,2]
[348967009,1736902240177,-500.0,0.00011527,2]
[348967010,1736902240186,-500.0,0.00011527,2]
[348967011,1736902240196,-500.0,0.00011527,2]
[348967012,1736902240206,-500.0,0.00011527,2]
[348967013,1736902240215,-420.76662732,0.00011527,2]
[348967014,1736902240225,-552.26890889,0.00011527,2]
[348967015,1736902240234,-500.0,0.00011527,2]
[348967016,1736902240243,-500.0,0.00011527,2]
[348967017,1736902240252,-500.0,0.00011527,2]
[348967018,1736902240262,-500.0,0.00011527,2]
[348967019,1736902240270,-500.0,0.00011527,2]
[348967020,1736902240280,-500.0,0.00011527,2]
[348967021,1736902240289,-500.0,0.00011527,2]
[348967022,1736902240298,-500.0,0.00011527,2]
[348967023,1736902240308,-874.92,0.00011527,2]
[348967024,1736902240317,-623.25,0.00011527,2]
[348967025,1736902240326,-500.0,0.00011527,2]
[348967026,1736902240336,-500.0,0.00011527,2]
[348967027,1736902240345,-500.0,0.00011527,2]
[348967028,1736902240354,-500.0,0.00011527,2]
[348967029,1736902240363,-515.49,0.00011527,2]
[348967030,1736902240372,-646.78,0.00011527,2]
[348967031,1736902240382,-500.0,0.00011527,2]
[348967032,1736902240391,-818.93,0.00011527,2]
[348967033,1736902240400,-1198.71,0.00011527,2]
[348967034,1736902240409,-500.0,0.00011527,2]
[348967035,1736902240418,-637.85,0.00011527,2]
[348967036,1736902240427,-500.0,0.00011527,2]
[348967037,1736902240436,-500.0,0.00011527,2]
[348967038,1736902240445,-500.0,0.00011527,2]
[348967039,1736902240455,-556.55,0.00011529,2]
[348967040,1736902240464,-500.0,0.00011529,2]
[348967041,1736902240474,-1182.14,0.00011529,2]
[348967042,1736902240484,-500.0,0.00011545,2]
[348967043,1736902240493,-500.0,0.00011545,2]
[348967044,1736902240503,-500.0,0.00011545,2]
[348967045,1736902240513,-500.0,0.00011545,2]
[348967046,1736902240522,-500.0,0.00011545,2]
[348967047,1736902240532,-500.0,0.00011545,2]
[348967048,1736902240543,-194.35736989,0.00011545,2]
[348967049,1736902240555,-500.0,0.00011545,2]
[348967050,1736902240564,-500.0,0.00011545,2]
[348967051,1736902240573,-500.0,0.00011545,2]
[348967052,1736902240584,-500.0,0.00011545,2]
[348967053,1736902240596,-500.0,0.00011545,2]
[348967054,1736902240605,-500.0,0.00011545,2]
[348967055,1736902240615,-500.0,0.00011545,2]
[348967056,1736902240628,-500.0,0.00011545,2]
[348967057,1736902240637,-500.0,0.00011545,2]
[348967058,1736902240646,-500.0,0.00011545,2]
[348967059,1736902240655,-500.0,0.00011545,2]
[348967060,1736902240664,-500.0,0.00011545,2]
[348967061,1736902240673,-500.0,0.00011545,2]
[348967062,1736902240682,-500.0,0.00011545,2]
[348967063,1736902240691,-500.0,0.00011545,2]
[348967064,1736902240700,-500.0,0.00011545,2]
[348967065,1736902240710,-500.0,0.00011545,2]
[348967066,1736902240719,-500.0,0.00011545,2]
[348967067,1736902240728,-500.0,0.00011545,2]
[348967068,1736902240738,-500.0,0.00011545,2]
[348967069,1736902240747,-500.0,0.00011545,2]
[348967070,1736902240757,-500.0,0.00011545,2]
[348967071,1736902240766,-500.0,0.00011545,2]
[348967072,1736902240778,-500.0,0.00011545,2]
[348967073,1736902240787,-500.0,0.00011545,2]
[348967074,1736902240796,-500.0,0.00011545,2]
[348967075,1736902240807,-500.0,0.00011545,2]
[348967076,1736902240816,-500.0,0.00011545,2]
[348967077,1736902240826,-500.0,0.00011545,2]
[348967078,1736902240835,-2164.87,0.00011545,2]
[348967079,1736902240844,-444.19916405,0.00011545,2]
[348967080,1736902240853,-500.0,0.00011545,2]
[348967081,1736902240862,-167.45823641,0.00011545,2]
[348967082,1736902240873,-500.0,0.00011545,2]
[348967083,1736902240885,-1563.89,0.00011545,2]
[348967084,1736902240894,-500.0,0.00011545,2]
[348967085,1736902240904,-500.0,0.00011545,2]
[348967086,1736902240917,-1807.58,0.00011545,2]
[348967087,1736902240927,-500.0,0.00011545,2]
[348967088,1736902240937,-500.0,0.00011545,2]
[348967089,1736902240948,-500.0,0.00011545,2]
[348967090,1736902240957,-500.0,0.00011545,2]
[348967091,1736902240967,-500.0,0.00011545,2]
[348967092,1736902240978,-500.0,0.00011545,2]
[348967093,1736902240987,-500.0,0.00011545,2]
[348967094,1736902240996,-500.0,0.00011545,2]
[348967095,1736902241008,-500.0,0.00011545,2]
[348967096,1736902241018,-500.0,0.00011545,2]
[348967097,1736902241202,-500.0,0.00011545,2]
[348967098,1736902241211,-559.04,0.00011545,2]
[348967099,1736902241221,-329.3062824,0.00011545,2]
[348967100,1736902241230,-1693.07,0.00011546,2]
[348967101,1736902241239,-677.7,0.00011546,2]
[348967102,1736902241248,-759.32,0.00011546,2]
[348967103,1736902241258,-551.36633304,0.00011546,2]
[348967104,1736902241267,-613.63,0.00011546,2]
[348967105,1736902241277,-626.43,0.00011546,2]
[348967106,1736902241286,-500.0,0.00011546,2]
[348967107,1736902241296,-886.6,0.00011546,2]
[348967108,1736902241309,-539.23,0.00011546,2]
[348967109,1736902241318,-1673.77,0.00011546,2]
[348967110,1736902241328,-944.05,0.00011546,2]
[348967111,1736902241337,-3490.19,0.00011546,2]
[348967112,1736902241346,-500.0,0.00011546,2]
[348967113,1736902241355,-814.1,0.00011546,2]
[348967114,1736902241364,-791.95,0.00011547,2]
[348967115,1736902241373,-2046.99,0.00011637,2]
[348967116,1736902241383,-500.0,0.00011642,2]
[348967117,1736902241392,-951.72,0.00011642,2]
[348967118,1736902241401,-2890.2,0.00011642,2]
[348967119,1736902241410,-500.0,0.00011642,2]
[348967120,1736902241420,-500.0,0.00011642,2]
[348967121,1736902241431,-500.0,0.00011642,2]
[348967122,1736902241440,-899.21,0.00011642,2]
[348967123,1736902241450,-500.0,0.00011642,2]
[348967124,1736902241459,-2049.43,0.00011642,2]
[348967125,1736902241469,-570.3,0.00011642,2]
[348967126,1736902241478,-500.0,0.00011642,2]
[348967127,1736902241488,-1049.34,0.00011642,2]
[348967128,1736902241497,-508.03,0.00011642,2]
[348967129,1736902241507,-500.0,0.00011642,2]
[348967130,1736902241516,-892.05,0.00011642,2]
[348967131,1736902241526,-931.61,0.00011642,2]
[348967132,1736902241535,-592.57,0.00011642,2]
[348967133,1736902241546,-500.0,0.00011642,2]
[348967134,1736902241560,-1565.46,0.00011642,2]
[348967135,1736902241569,-689.17,0.00011642,2]
[348967136,1736902241578,-500.0,0.00011642,2]
[348967137,1736902241590,-605.03,0.00011642,2]
[348967138,1736902241599,-556.38,0.00011642,2]
[348967139,1736902241608,-726.61,0.00011642,2]
[348967140,1736902241617,-500.0,0.00011642,2]
[348967141,1736902241628,-884.02,0.00011642,2]
[348967142,1736902241638,-500.0,0.00011642,2]
[348967143,1736902241647,-500.0,0.00011642,2]
[348967144,1736902241656,-500.0,0.00011642,2]
[348967145,1736902241666,-500.0,0.00011642,2]
[348967146,1736902241675,-500.0,0.00011642,2]
[348967147,1736902241685,-500.0,0.00011643,2]
[348967148,1736902241694,-500.0,0.00011643,2]
[348967149,1736902241703,-155.27,0.00011643,2]
[348967150,1736902241712,-500.0,0.00011643,2]
[348967151,1736902241723,-500.0,0.00011643,2]
[348967152,1736902241732,-500.0,0.00011643,2]
[348967153,1736902241741,-500.0,0.00011643,2]
[348967154,1736902241751,-500.0,0.00011643,2]
[348967155,1736902241760,-500.0,0.00011643,2]
[348967156,1736902241769,-522.56,0.00011643,2]
[348967157,1736902241779,-436.68,0.00011643,2]
[348967158,1736902241788,-500.0,0.00011643,2]
[348967159,1736902241797,-500.0,0.00011643,2]
[348967160,1736902241807,-500.0,0.00011643,2]
[348967161,1736902241817,-500.0,0.00011643,2]
[348967162,1736902241828,-500.0,0.00011643,2]
[348967163,1736902241837,-500.0,0.00011643,2]
[348967164,1736902241846,-500.0,0.00011643,2]
[348967165,1736902241855,-500.0,0.00011643,2]
[348967166,1736902241866,-500.0,0.00011643,2]
[348967167,1736902241875,-193.05,0.00011657,2]
[348967168,1736902241885,-1303.90513457,0.00011659,2]
[348967169,1736902241895,-3179.76,0.00011696,2]
[348967170,1736902241904,-956.73,0.00011696,2]
[348967171,1736902241914,-1495.0,0.00011696,2]
[348967172,1736902241924,-879.17,0.00011696,2]
[348967173,1736902241934,-500.0,0.00011696,2]
[348967174,1736902241943,-695.35,0.00011696,2]
[348967175,1736902241952,-500.0,0.00011697,2]
[348967176,1736902241962,-2944.0,0.00011739,2]
[348967177,1736902241971,-817.0,0.00011739,2]
[348967178,1736902241980,-2640.358,0.00011739,2]
[348967179,1736902241990,-537.0,0.00011739,2]
[348967180,1736902241999,-500.0,0.00011801,2]
[348967181,1736902242008,-500.0,0.00011801,2]
[348967182,1736902242018,-500.0,0.00011801,2]
[348967183,1736902242027,-500.0,0.00011801,2]
[348967184,1736902242037,-500.0,0.00011801,2]
[348967185,1736902242046,-500.0,0.00011801,2]
[348967186,1736902242055,-500.0,0.00011801,2]
[348967187,1736902242065,-562.29,0.00011801,2]
[348967188,1736902242075,-874.92,0.00011801,2]
[348967189,1736902242085,-623.25,0.00011801,2]
[348967190,1736902242094,-500.0,0.00011801,2]
[348967191,1736902242103,-500.0,0.00011801,2]
[348967192,1736902242113,-500.0,0.00011801,2]
[348967193,1736902242122,-546.04,0.00011801,2]
[348967194,1736902242131,-515.49,0.00011801,2]
[348967195,1736902242141,-646.78,0.00011801,2]
[348967196,1736902242150,-500.0,0.00011801,2]
[348967197,1736902242159,-818.93,0.00011801,2]
[348967198,1736902242169,-1198.71,0.00011801,2]
[348967199,1736902242178,-500.0,0.00011801,2]
[348967200,1736902242187,-637.85,0.00011801,2]
[348967201,1736902242196,-500.0,0.00011801,2]
[348967202,1736902242206,-500.0,0.00011801,2]
[348967203,1736902242215,-556.55,0.00011803,2]
[348967204,1736902242224,-500.0,0.00011803,2]
[348967205,1736902242233,-1182.14,0.00011803,2]
[348967206,1736902242243,-429.93842545,0.00011812,2]
[348967207,1736902242252,-500.0,0.00011819,2]
[348967208,1736902242262,-500.0,0.00011819,2]
[348967209,1736902242271,-500.0,0.00011819,2]
[348967210,1736902242280,-524.08700729,0.00011819,2]
[348967211,1736902242289,-500.0,0.00011819,2]
[348967212,1736902242299,-500.0,0.00011819,2]
[348967213,1736902242308,-500.0,0.00011819,2]
[348967214,1736902242318,-500.0,0.00011819,2]
[348967215,1736902242326,-500.0,0.00011819,2]
[348967216,1736902242335,-500.0,0.00011819,2]
[348967217,1736902242344,-500.0,0.00011819,2]
[348967218,1736902242354,-500.0,0.00011819,2]
[348967219,1736902242362,-500.0,0.00011819,2]
[348967220,1736902242371,-500.0,0.00011819,2]
[348967221,1736902242381,-500.0,0.00011819,2]
[348967222,1736902242390,-500.0,0.00011819,2]
[348967223,1736902242399,-500.0,0.00011819,2]
[348967224,1736902242409,-500.0,0.00011819,2]
[348967225,1736902242418,-500.0,0.00011819,2]
[348967226,1736902242427,-500.0,0.00011819,2]
[348967227,1736902242436,-500.0,0.00011819,2]
[348967228,1736902242446,-500.0,0.00011819,2]
[348967229,1736902242455,-500.0,0.00011819,2]
[348967231,1736902242464,-500.0,0.00011819,2]
[348967233,1736902242473,-500.0,0.00011819,2]
[348967235,1736902242482,-500.0,0.00011819,2]
[348967236,1736902242491,-500.0,0.00011819,2]
[348967237,1736902242500,-500.0,0.00011819,2]
[348967238,1736902242509,-500.0,0.00011819,2]
[348967239,1736902242518,-500.0,0.00011819,2]
[348967240,1736902242527,-500.0,0.00011819,2]
[348967241,1736902242536,-500.0,0.00011819,2]
[348967242,1736902242546,-500.0,0.00011819,2]
[348967243,1736902242556,-2164.87,0.00011819,2]
[348967244,1736902242566,-500.0,0.00011819,2]
[348967245,1736902242576,-500.0,0.00011819,2]
[348967246,1736902242586,-1563.89,0.00011819,2]
[348967247,1736902242595,-500.0,0.00011819,2]
[348967248,1736902242605,-500.0,0.00011819,2]
[348967249,1736902242614,-1807.58,0.00011819,2]
[348967250,1736902242625,-500.0,0.00011819,2]
[348967252,1736902242634,-500.0,0.00011819,2]
[348967255,1736902242643,-500.0,0.00011819,2]
[348967258,1736902242652,-500.0,0.00011819,2]
[348967260,1736902242662,-500.0,0.00011819,2]
[348967262,1736902242671,-500.0,0.00011819,2]
[348967264,1736902242680,-500.0,0.00011819,2]
[348967266,1736902242689,-500.0,0.00011819,2]
[348967268,1736902242698,-559.04,0.00011819,2]
[348967271,1736902242707,-1693.07,0.0001182,2]
[348967273,1736902242716,-658.3,0.0001182,2]
[348967275,1736902242726,-677.7,0.0001182,2]
[348967277,1736902242734,-759.32,0.0001182,2]
[348967278,1736902242743,-613.63,0.0001182,2]
[348967280,1736902242753,-500.0,0.0001182,2]
[348967282,1736902242762,-1044.08,0.0001182,2]
[348967284,1736902242771,-626.43,0.0001182,2]
[348967285,1736902242780,-500.0,0.0001182,2]
[348967286,1736902242789,-500.0,0.0001182,2]
[348967287,1736902242798,-886.6,0.0001182,2]
[348967288,1736902242808,-500.0,0.0001182,2]
[348967289,1736902242818,-1673.77,0.0001182,2]
[348967290,1736902242831,-539.23,0.0001182,2]
[348967291,1736902242840,-944.05,0.0001182,2]
[348967292,1736902242849,-675.08,0.0001182,2]
[348967293,1736902242859,-3490.19,0.0001182,2]
[348967294,1736902242868,-500.0,0.0001182,2]
[348967295,1736902242878,-814.1,0.0001182,2]